bitfinex/quotes_SOLUSD_20250805
["timestamp","ask_amount","ask_price","bid_price","bid_amount"]
[1754363468122,5.07469494,168.47,168.43,0.06]
[1754363468123,5.07469494,168.45,168.43,0.06]
[1754363468302,46.73469494,168.44,168.43,0.06]
[1754363468504,42.34,168.44,168.43,0.06]
[1754363468817,47.41469494,168.44,168.43,0.06]
[1754363469814,41.66,168.44,168.43,0.06]
[1754363469990,41.68,168.44,168.43,0.06]
[1754363470503,41.68,168.44,168.43,5.69469494]
[1754363470702,41.68,168.47,168.43,26.61700255]
[1754363470918,41.68,168.47,168.45,5.07469494]
[1754363471088,41.68,168.47,168.44,0.56]
[1754363471089,41.68,168.47,168.44,5.07469494]
[1754363471288,41.68,168.47,168.44,0.56]
[1754363471500,42.36,168.47,168.43,20.98230761]
[1754363471707,42.36,168.47,168.43,26.05700255]
[1754363472496,5.07469494,168.45,168.43,0.06]
[1754363472700,41.68,168.44,168.43,0.06]
[1754363472922,42.36,168.44,168.43,0.06]
[1754363473217,47.43469494,168.44,168.43,0.06]
[1754363473600,41.68,168.44,168.43,0.06]
[1754363473824,41.68,168.44,168.43,5.13469494]
[1754363473999,41.68,168.44,168.43,0.06]
[1754363474192,41.68,168.44,168.43,5.69469494]
[1754363474713,148.2,168.47,168.44,6.07899367]
[1754363474906,189.9,168.47,168.45,5.63469494]
[1754363475095,189.9,168.47,168.46,5.07469494]
[1754363475495,189.9,168.47,168.45,5.63469494]
[1754363475697,189.9,168.47,168.44,6.07899367]
[1754363476014,190.58,168.47,168.44,6.07899367]
[1754363476324,190.58,168.47,168.44,5.9368321]
[1754363476527,0.68,168.46,168.44,5.9368321]
[1754363476729,0.68,168.45,168.43,5.99708977]
[1754363476896,42.4,168.45,168.43,5.99708977]
[1754363477095,42.4,168.45,168.44,5.07469494]
[1754363477096,41.72,168.45,168.44,5.07469494]
[1754363477300,41.72,168.45,168.44,5.63469494]
[1754363477499,41.72,168.45,168.44,5.07469494]
[1754363477917,41.72,168.45,168.43,5.99708977]
[1754363478115,41.72,168.45,168.44,5.07469494]
[1754363478315,189.92,168.47,168.44,5.63469494]
[1754363478524,189.92,168.47,168.46,0.06]
[1754363479224,189.92,168.47,168.46,5.13469494]
[1754363479401,148.2,168.47,168.46,5.13469494]
[1754363480424,148.2,168.47,168.46,0.06]
[1754363480618,148.88,168.47,168.46,0.06]
[1754363481820,148.2,168.47,168.46,0.06]
[1754363482123,148.88,168.47,168.46,0.06]
[1754363482419,153.95469494,168.47,168.46,0.06]
[1754363482622,148.88,168.47,168.46,0.06]
[1754363483019,5.75469494,168.47,168.46,0.06]
[1754363484320,0.68,168.47,168.46,0.06]
[1754363484518,5.75469494,168.47,168.46,0.06]
[1754363485910,11.69046985,168.47,168.46,0.06]
[1754363490124,26.79668542,168.47,168.46,0.06]
[1754363490324,26.0,168.44,168.38,11.01353569]
[1754363490534,189.84,168.43,168.38,11.57353569]
[1754363490730,189.84,168.43,168.34,30.09863413]
[1754363490731,148.8,168.42,168.35,6.08216751]
[1754363491030,5.07469494,168.4,168.35,11.57470088]
[1754363491201,42.36,168.39,168.35,5.94000594]
[1754363491405,26.0,168.36,168.33,5.94052805]
[1754363491632,41.72,168.35,168.33,5.94052805]
[1754363492243,46.79469494,168.35,168.32,5.94099114]
[1754363492436,41.72,168.35,168.32,5.94099114]
[1754363492808,0.66,168.34,168.32,5.94099114]
[1754363493000,0.66,168.34,168.31,61.31798058]
[1754363493001,41.74,168.33,168.31,61.31798058]
[1754363493207,41.74,168.33,168.31,66.39267552]
[1754363493407,5.73469494,168.32,168.31,61.31798058]
[1754363493608,41.74,168.33,168.28,5.94247682]
[1754363493808,5.07469494,168.32,168.28,11.01717176]
[1754363494041,41.84,168.31,168.28,11.01717176]
[1754363494248,41.84,168.31,168.28,5.94247682]
[1754363494616,41.84,168.31,168.28,11.01717176]
[1754363495527,41.84,168.31,168.28,11.57717176]
[1754363495730,41.84,168.31,168.3,5.07469494]
[1754363496136,41.84,168.31,168.3,0.56]
[1754363496340,41.84,168.31,168.3,11.57646558]
[1754363496925,41.84,168.33,168.3,11.57646558]
[1754363497256,41.84,168.33,168.31,5.07469494]
[1754363497553,41.84,168.33,168.3,6.50177064]
[1754363497554,41.84,168.32,168.3,5.94177064]
[1754363497715,41.86,168.33,168.31,5.07469494]
[1754363497919,41.86,168.33,168.3,5.94177064]
[1754363498140,41.86,168.33,168.31,5.07469494]
[1754363498341,41.86,168.33,168.32,5.63469494]
[1754363498618,42.54,168.33,168.27,0.56]
[1754363498932,42.54,168.33,168.27,21.3599049]
[1754363499132,42.54,168.33,168.29,5.07469494]
[1754363499345,42.54,168.33,168.27,21.3599049]
[1754363499544,42.54,168.33,168.29,5.07469494]
[1754363499741,0.66,168.32,168.29,5.07469494]
[1754363499949,46.97469494,168.31,168.27,5.94282997]
[1754363500266,0.66,168.3,168.27,5.94282997]
[1754363500440,0.66,168.29,168.26,5.94312964]
[1754363500755,42.58,168.28,168.26,5.94312964]
[1754363500940,41.92,168.28,168.27,5.07469494]
[1754363501147,41.92,168.28,168.26,11.01782458]
[1754363502454,41.92,168.28,168.26,5.94312964]
[1754363502659,47.65469494,168.28,168.24,5.07469494]
[1754363502844,0.66,168.27,168.24,5.07469494]
[1754363503248,61.85461294,168.28,168.24,5.94388968]
[1754363503444,0.66,168.26,168.24,5.94388968]
[1754363504163,61.85461294,168.28,168.24,5.94388968]
[1754363504458,0.66,168.25,168.24,5.94388968]
[1754363504757,0.66,168.27,168.24,5.94388968]
[1754363504944,0.66,168.26,168.24,5.94388968]
[1754363505336,41.92,168.25,168.24,5.94388968]
[1754363505871,14.859918,168.28,168.24,26.43830882]
[1754363506032,5.07469494,168.31,168.25,0.56]
[1754363506240,41.94,168.29,168.27,5.07469494]
[1754363506672,41.94,168.29,168.27,5.94282997]
[1754363508058,41.94,168.29,168.27,11.01752491]
[1754363508464,41.94,168.29,168.27,5.94282997]
[1754363510266,42.6,168.29,168.27,5.94282997]
[1754363511645,0.66,168.28,168.27,5.94282997]
[1754363512065,0.66,168.28,168.23,5.944243]
[1754363512237,5.07469494,168.3,168.25,5.07469494]
[1754363512442,41.92,168.29,168.28,5.07469494]
[1754363512961,41.92,168.29,168.27,5.94282997]
[1754363513265,41.92,168.29,168.28,5.07469494]
[1754363513866,41.94,168.32,168.28,5.63469494]
[1754363514070,41.94,168.32,168.29,0.56]
[1754363514278,42.6,168.32,168.3,5.07469494]
[1754363514440,0.66,168.31,168.29,5.07469494]
[1754363514643,0.66,168.31,168.27,20.7999049]
[1754363514842,0.66,168.31,168.29,5.07469494]
[1754363515042,0.66,168.31,168.3,5.94177064]
[1754363515472,0.66,168.31,168.29,11.0167023]
[1754363516047,41.94,168.32,168.29,5.94200736]
[1754363516250,41.94,168.32,168.3,5.07469494]
[1754363516738,42.6,168.32,168.3,5.07469494]
[1754363517753,41.94,168.32,168.31,5.07469494]
[1754363518772,41.94,168.32,168.28,21.35866888]
[1754363518963,41.94,168.32,168.31,11.01611256]
[1754363519161,41.94,168.32,168.31,5.94141762]
[1754363519675,42.62,168.32,168.31,5.94141762]
[1754363519858,41.94,168.32,168.31,5.94141762]
[1754363521869,42.62,168.32,168.31,5.94141762]
[1754363522181,148.2,168.35,168.31,11.01611256]
[1754363522382,190.1,168.35,168.33,5.07469494]
[1754363522562,190.78,168.35,168.33,5.07469494]
[1754363523276,190.1,168.35,168.34,5.94035879]
[1754363523684,190.1,168.35,168.34,11.01505373]
[1754363523856,42.58,168.35,168.34,11.01505373]
[1754363524558,41.9,168.35,168.34,11.01505373]
[1754363525772,41.9,168.37,168.34,11.57505373]
[1754363525967,41.9,168.37,168.36,5.07469494]
[1754363526449,148.88,168.4,168.36,5.07469494]
[1754363526450,41.9,168.39,168.36,5.07469494]
[1754363526650,41.9,168.39,168.37,5.07469494]
[1754363526958,41.9,168.39,168.38,5.07469494]
[1754363527160,41.9,168.39,168.38,5.93894761]
[1754363527375,42.58,168.39,168.37,5.07469494]
[1754363527673,42.58,168.39,168.36,5.93965312]
[1754363527974,42.58,168.39,168.38,5.07469494]
[1754363528871,42.58,168.39,168.38,11.01364255]
[1754363530268,42.58,168.39,168.34,14.85089699]
[1754363530576,0.68,168.38,168.36,5.07469494]
[1754363530867,0.68,168.37,168.36,5.07469494]
[1754363531456,0.68,168.37,168.35,11.01470088]
[1754363532272,0.68,168.37,168.36,5.07469494]
[1754363532568,42.58,168.39,168.36,5.07469494]
[1754363532767,0.68,168.38,168.36,11.01416874]
[1754363533472,41.9,168.39,168.37,5.07469494]
[1754363533671,41.9,168.39,168.38,5.07469494]
[1754363534280,41.9,168.39,168.37,5.07469494]
[1754363534463,0.68,168.38,168.37,5.07469494]
[1754363535379,0.68,168.38,168.37,5.93930035]
[1754363535574,0.68,168.38,168.33,5.94071169]
[1754363535774,0.68,168.38,168.35,5.07469494]
[1754363535956,0.68,168.37,168.35,5.07469494]
[1754363536778,0.68,168.37,168.33,5.94071169]
[1754363536977,148.2,168.38,168.35,5.07469494]
[1754363537165,148.2,168.38,168.33,6.50071169]
[1754363537166,148.88,168.38,168.36,5.07469494]
[1754363537365,148.88,168.38,168.36,11.01405646]
[1754363537683,0.68,168.37,168.36,11.01405646]
[1754363538375,148.2,168.38,168.36,11.01405646]
[1754363538558,148.88,168.38,168.36,11.01405646]
[1754363538753,148.2,168.38,168.37,5.07469494]
[1754363538958,148.2,168.38,168.37,5.63469494]
[1754363539372,41.82,168.41,168.38,5.93894761]
[1754363539683,41.82,168.41,168.4,5.07469494]
[1754363540360,0.68,168.41,168.39,5.07469494]
[1754363541178,41.86,168.41,168.4,5.07469494]
[1754363541686,41.86,168.41,168.4,11.01293722]
[1754363542161,42.54,168.41,168.4,5.93824228]
[1754363542361,42.54,168.41,168.4,11.01293722]
[1754363542579,41.86,168.41,168.4,11.01293722]
[1754363543581,41.86,168.41,168.38,20.78631665]
[1754363543882,41.86,168.41,168.4,5.07469494]
[1754363544275,42.54,168.41,168.4,5.07469494]
[1754363544462,41.86,168.41,168.4,5.07469494]
[1754363545179,42.54,168.41,168.4,5.07469494]
[1754363545676,41.86,168.41,168.4,11.01293722]
[1754363546380,0.68,168.43,168.4,11.01293722]
[1754363546557,148.2,168.44,168.42,5.07469494]
[1754363546756,148.2,168.44,168.43,5.07469494]
[1754363547881,148.2,168.44,168.43,11.01187952]
[1754363549786,148.92,168.44,168.43,11.01187952]
[1754363551656,148.92,168.44,168.41,5.07469494]
[1754363552002,5.07469494,168.42,168.35,5.07469494]
[1754363552198,5.07469494,168.4,168.35,5.07469494]
[1754363552379,42.54,168.39,168.35,5.07469494]
[1754363552581,41.82,168.39,168.35,5.07469494]
[1754363552899,0.72,168.38,168.35,5.07469494]
[1754363553066,0.72,168.37,168.36,5.93965312]
[1754363554107,42.54,168.37,168.34,5.94035879]
[1754363554264,0.72,168.36,168.34,11.01505373]
[1754363554598,41.82,168.37,168.35,5.07469494]
[1754363554880,42.54,168.37,168.35,5.07469494]
[1754363555273,0.72,168.36,168.34,11.01505373]
[1754363557276,0.72,168.36,168.34,5.94035879]
[1754363557479,0.72,168.35,168.31,11.01611256]
[1754363557661,0.72,168.34,168.31,11.01611256]
[1754363557968,0.72,168.34,168.32,5.07469494]
[1754363558169,0.72,168.34,168.33,5.94071169]
[1754363559589,0.72,168.34,168.32,6.00096789]
[1754363559788,0.72,168.33,168.32,6.00096789]
[1754363560687,41.82,168.35,168.32,11.07566283]
[1754363560889,41.82,168.35,168.33,5.07469494]
[1754363561085,42.54,168.35,168.33,5.07469494]
[1754363561480,42.54,168.35,168.32,11.07566283]
[1754363561881,41.82,168.35,168.32,11.07566283]
[1754363562080,0.72,168.34,168.32,6.00096789]
[1754363562282,41.82,168.34,168.32,6.00096789]
[1754363562597,0.72,168.33,168.32,6.00096789]
[1754363564383,41.8,168.34,168.32,6.00096789]
[1754363564708,41.8,168.34,168.32,11.07566283]
[1754363565909,42.54,168.36,168.32,11.07566283]
[1754363566103,0.72,168.35,168.32,11.07566283]
[1754363566311,0.72,168.34,168.32,5.13469494]
[1754363566608,0.72,168.33,168.32,5.13469494]
[1754363566998,41.82,168.36,168.32,5.13469494]
[1754363566999,46.89469494,168.36,168.32,5.13469494]
[1754363567201,0.72,168.35,168.32,5.13469494]
[1754363567776,0.72,168.35,168.32,0.06]
[1754363567976,0.72,168.34,168.32,0.06]
[1754363568405,0.72,168.34,168.32,6.00106463]
[1754363570389,148.2,168.35,168.32,6.00106463]
[1754363570589,0.72,168.33,168.32,6.00106463]
[1754363571112,42.5,168.33,168.32,6.00106463]
[1754363571409,42.5,168.33,168.32,0.06]
[1754363571616,47.57469494,168.33,168.32,0.06]
[1754363574290,42.5,168.33,168.32,0.06]
[1754363574491,41.78,168.33,168.32,0.06]
[1754363574687,41.78,168.33,168.32,6.00106463]
[1754363575795,189.96,168.35,168.32,11.07575957]
[1754363576212,189.96,168.35,168.34,5.07469494]
[1754363576721,189.96,168.35,168.34,11.01505373]
[1754363577421,190.68,168.35,168.34,5.94035879]
[1754363577625,189.96,168.35,168.34,5.94035879]
[1754363578008,190.68,168.35,168.32,0.06]
[1754363578206,0.72,168.34,168.32,0.06]
[1754363578893,0.72,168.34,168.32,11.07566601]
[1754363579092,189.96,168.35,168.32,11.07566601]
[1754363579321,190.68,168.35,168.32,11.07566601]
[1754363580718,190.68,168.35,168.32,6.00097107]
[1754363580914,0.72,168.34,168.32,6.00097107]
[1754363581113,42.5,168.33,168.32,6.00097107]
[1754363581510,42.5,168.33,168.32,0.06]
[1754363581697,47.57469494,168.33,168.32,0.06]
[1754363582915,53.51540663,168.33,168.32,0.06]
[1754363583320,0.72,168.33,168.32,0.06]
[1754363583515,42.52,168.33,168.32,0.06]
[1754363586132,41.8,168.33,168.32,0.06]
[1754363586822,42.52,168.33,168.32,0.06]
[1754363587318,47.59469494,168.33,168.32,0.06]
[1754363590517,42.52,168.33,168.32,0.06]
[1754363590722,41.8,168.33,168.32,0.06]
[1754363591028,41.78,168.33,168.32,5.13469494]
[1754363591809,0.72,168.36,168.32,5.13469494]
[1754363592020,41.8,168.35,168.32,5.69469494]
[1754363592224,41.8,168.35,168.33,5.94071169]
[1754363593422,41.8,168.35,168.33,11.01540663]
[1754363594020,41.8,168.35,168.33,5.94071169]
[1754363594021,0.72,168.34,168.33,5.94071169]
[1754363595120,0.72,168.34,168.32,0.06]
[1754363595323,42.5,168.33,168.32,0.06]
[1754363595735,42.5,168.33,168.32,6.00104365]
[1754363596821,41.78,168.33,168.32,0.06]
[1754363597022,0.72,168.36,168.32,5.13469494]
[1754363597225,46.85469494,168.35,168.32,0.06]
[1754363597430,0.72,168.34,168.32,0.06]
[1754363597641,189.98,168.33,168.32,0.06]
[1754363597854,195.05469494,168.33,168.32,0.06]
[1754363598341,195.77469494,168.33,168.32,0.06]
[1754363598639,5.941418,168.37,168.32,5.69469494]
[1754363598823,41.84,168.37,168.36,11.01434806]
[1754363600643,42.56,168.37,168.32,0.06]
[1754363600822,0.72,168.36,168.32,5.13469494]
[1754363601017,41.82,168.35,168.32,0.06]
[1754363601215,0.72,168.34,168.32,0.06]
[1754363601420,41.84,168.33,168.32,0.06]
[1754363601717,42.56,168.33,168.32,0.06]
[1754363602136,41.84,168.33,168.32,0.06]
[1754363602722,42.56,168.33,168.32,0.06]
[1754363605652,41.84,168.33,168.32,0.06]
[1754363606033,41.84,168.33,168.32,6.00106463]
[1754363606357,41.82,168.35,168.32,11.63575957]
[1754363606656,41.82,168.35,168.33,5.63469494]
[1754363606963,41.82,168.35,168.34,5.07469494]
[1754363608521,41.82,168.35,168.34,11.01505373]
[1754363608727,0.69,168.37,168.34,11.01505373]
[1754363608945,42.51,168.36,168.34,5.94035879]
[1754363609250,5.76469494,168.35,168.32,0.06]
[1754363609554,41.8,168.34,168.32,0.06]
[1754363609856,42.49,168.34,168.32,0.06]
[1754363610152,0.69,168.33,168.32,0.06]
[1754363610532,41.8,168.34,168.32,0.06]
[1754363610733,41.8,168.34,168.32,5.13469494]
[1754363611047,41.8,168.34,168.32,0.06]
[1754363611231,42.49,168.34,168.32,0.06]
[1754363611632,0.69,168.33,168.32,0.06]
[1754363611851,42.49,168.34,168.32,0.06]
[1754363612055,41.8,168.34,168.32,5.13469494]
[1754363612233,42.49,168.34,168.32,5.13469494]
[1754363612434,42.49,168.34,168.32,0.06]
[1754363612628,0.69,168.33,168.32,0.06]
[1754363613948,41.8,168.34,168.32,0.06]
[1754363614329,42.49,168.34,168.32,0.06]
[1754363614555,41.8,168.34,168.32,0.06]
[1754363614758,0.69,168.33,168.32,0.06]
[1754363617961,190.0,168.34,168.32,5.13469494]
[1754363618165,41.8,168.34,168.33,5.07469494]
[1754363619149,41.8,168.34,168.33,5.94071169]
[1754363619354,41.8,168.34,168.33,11.01540663]
[1754363621068,41.8,168.34,168.33,5.94071169]
[1754363621761,42.49,168.34,168.32,6.00097448]
[1754363621946,41.8,168.34,168.32,6.00097448]
[1754363622334,0.69,168.33,168.32,6.00097448]
[1754363622531,0.69,168.33,168.32,0.06]
[1754363623763,41.8,168.34,168.32,0.06]
[1754363624077,41.8,168.34,168.32,5.13469494]
[1754363625384,42.49,168.34,168.32,0.06]
[1754363625735,41.8,168.34,168.32,5.13469494]
[1754363625932,41.8,168.34,168.33,5.07469494]
[1754363626755,41.8,168.34,168.32,5.13469494]
[1754363627267,41.8,168.34,168.33,5.94071169]
[1754363629163,42.49,168.34,168.32,0.06]
[1754363629364,0.69,168.33,168.32,0.06]
[1754363630139,5.76469494,168.33,168.32,0.06]
[1754363631065,11.70540663,168.33,168.32,0.06]
[1754363633250,0.69,168.33,168.32,0.06]
[1754363633457,42.45,168.33,168.32,0.06]
[1754363633759,47.52469494,168.33,168.32,0.06]
[1754363635341,46.83469494,168.33,168.32,0.06]
[1754363635774,41.76,168.33,168.32,0.06]
[1754363636647,42.45,168.33,168.32,0.06]
[1754363638863,41.76,168.33,168.32,0.06]
[1754363640273,189.94,168.34,168.32,0.06]
[1754363640966,189.94,168.34,168.32,5.13469494]
[1754363642050,189.94,168.34,168.33,5.94071169]
[1754363642246,189.94,168.34,168.33,11.01540663]
[1754363642447,148.2,168.34,168.33,11.01540663]
[1754363642767,148.2,168.34,168.33,11.57540663]
[1754363643452,148.2,168.34,168.33,11.01540663]
[1754363644860,148.2,168.34,168.33,5.94071169]
[1754363645063,148.91,168.34,168.33,5.94071169]
[1754363645545,148.2,168.34,168.33,5.94071169]
[1754363646180,148.2,168.34,168.33,11.01540663]
[1754363647361,148.2,168.34,168.33,5.94071169]
[1754363647677,148.2,168.34,168.32,5.13469494]
[1754363648059,148.2,168.34,168.33,5.07469494]
[1754363648870,148.2,168.34,168.33,11.01540663]
[1754363651380,41.68,168.37,168.33,11.57540663]
[1754363651671,42.39,168.37,168.35,5.07469494]
[1754363652575,42.39,168.37,168.36,5.93965312]
[1754363653781,42.39,168.37,168.35,11.01455185]
[1754363654463,41.68,168.37,168.36,5.07469494]
[1754363654664,42.39,168.37,168.36,5.07469494]
[1754363655878,41.68,168.37,168.36,5.07469494]
[1754363657071,42.39,168.37,168.36,5.07469494]
[1754363657384,0.71,168.39,168.36,11.01434806]
[1754363657574,41.64,168.38,168.36,11.01434806]
[1754363657755,42.35,168.38,168.36,5.07469494]
[1754363660375,0.71,168.37,168.34,15.24837714]
[1754363660686,41.64,168.36,168.34,15.24837714]
[1754363660886,42.35,168.36,168.34,20.32307208]
[1754363661290,42.35,168.36,168.34,26.26312542]
[1754363661589,41.64,168.36,168.35,5.21685651]
[1754363662695,41.64,168.36,168.35,11.15686245]
[1754363668579,41.64,168.36,168.35,6.08216751]
[1754363668780,42.36,168.36,168.35,6.08216751]
[1754363669098,42.36,168.36,168.33,11.07533481]
[1754363669301,5.79469494,168.35,168.33,0.06]
[1754363669486,0.72,168.35,168.33,6.0007109]
[1754363669680,0.72,168.34,168.33,6.0007109]
[1754363670379,42.36,168.36,168.33,6.0007109]
[1754363670581,0.72,168.35,168.33,6.0007109]
[1754363671076,0.72,168.35,168.33,0.06]
[1754363671281,0.72,168.34,168.33,0.06]
[1754363671898,41.64,168.36,168.33,20.94307208]
[1754363672198,41.64,168.36,168.35,11.15686245]
[1754363672570,41.64,168.36,168.35,6.08216751]
[1754363672791,0.72,168.38,168.35,11.15686245]
[1754363672992,41.64,168.37,168.35,11.15686245]
[1754363673389,41.64,168.37,168.36,0.14216157]
[1754363673999,41.64,168.37,168.36,6.08181469]
[1754363674386,42.36,168.37,168.36,6.08181469]
[1754363675288,42.36,168.37,168.36,11.15650963]
[1754363676500,42.36,168.37,168.36,6.08181469]
[1754363677518,42.36,168.37,168.36,11.15650963]
[1754363677872,41.64,168.37,168.36,11.15650963]
[1754363678606,42.36,168.37,168.36,11.15650963]
[1754363680285,42.36,168.37,168.36,0.14216157]
[1754363683203,42.36,168.37,168.34,0.14216157]
[1754363683419,0.72,168.36,168.33,0.06]
[1754363683576,0.72,168.36,168.33,6.00058916]
[1754363683778,0.72,168.36,168.34,0.14216157]
[1754363684084,41.64,168.37,168.34,0.14216157]
[1754363684297,0.72,168.35,168.34,6.08252036]
[1754363684500,41.64,168.37,168.34,11.1572153]
[1754363684686,41.64,168.37,168.35,5.07469494]
[1754363685505,41.64,168.37,168.35,11.01446708]
[1754363686007,41.64,168.37,168.35,5.93977214]
[1754363686304,42.36,168.37,168.35,5.93977214]
[1754363687080,0.72,168.36,168.35,6.08193371]
[1754363690018,41.64,168.37,168.35,6.08193371]
[1754363690898,42.36,168.37,168.35,6.08193371]
[1754363691907,0.72,168.36,168.35,6.08193371]
[1754363693397,0.72,168.36,168.35,6.14193371]
[1754363694512,41.64,168.37,168.35,6.14193371]
[1754363695028,42.36,168.37,168.35,6.14193371]
[1754363696198,0.72,168.36,168.35,6.14193371]
[1754363700448,41.64,168.37,168.35,6.14193371]
[1754363700628,0.67,168.36,168.35,0.06]
[1754363700803,0.67,168.36,168.33,0.06]
[1754363700804,5.74469494,168.36,168.33,0.06]
[1754363701001,11.01505373,168.34,168.33,0.06]
[1754363701820,11.68505373,168.34,168.33,0.06]
[1754363702122,5.74469494,168.34,168.33,0.06]
[1754363702827,0.67,168.34,168.33,0.06]
[1754363703005,42.31,168.35,168.33,0.06]
[1754363703421,5.74469494,168.34,168.33,0.06]
[1754363705209,41.64,168.35,168.33,0.06]
[1754363705412,42.31,168.35,168.33,0.06]
[1754363705710,47.38469494,168.35,168.33,0.06]
[1754363705915,0.67,168.34,168.33,0.06]
[1754363706227,47.38469494,168.35,168.33,0.06]
[1754363707215,41.64,168.35,168.33,0.20216157]
[1754363709129,41.64,168.35,168.33,6.14252513]
[1754363710009,42.31,168.35,168.33,6.14252513]
[1754363713813,41.64,168.35,168.33,6.14252513]
[1754363714016,0.67,168.34,168.33,6.14252513]
[1754363716020,41.64,168.35,168.33,6.14252513]
[1754363716218,42.31,168.35,168.33,6.14252513]
[1754363717446,41.64,168.35,168.33,6.14252513]
[1754363718022,42.31,168.35,168.33,6.14252513]
[1754363718947,41.64,168.35,168.33,6.14252513]
[1754363719240,0.67,168.34,168.33,6.14252513]
[1754363721660,0.67,168.34,168.33,0.06]
[1754363722560,0.67,168.34,168.33,6.14287326]
[1754363722734,41.64,168.35,168.33,6.14287326]
[1754363724027,0.67,168.34,168.33,6.14287326]
[1754363727329,41.64,168.35,168.33,6.14287326]
[1754363727529,42.31,168.35,168.33,6.14287326]
[1754363728939,41.64,168.35,168.33,6.14287326]
[1754363729537,42.32,168.35,168.33,6.14287326]
[1754363729944,0.68,168.34,168.33,6.14287326]
[1754363733656,0.68,168.34,168.33,0.06]
[1754363733857,152.13490249,168.34,168.33,0.06]
[1754363734741,153.96792137,168.34,168.33,0.06]
[1754363736763,159.90828016,168.34,168.33,0.06]
[1754363736949,37.70828016,168.34,168.33,0.06]
[1754363737267,11.70828016,168.34,168.33,0.06]
[1754363737449,15.7074507,168.34,168.33,0.06]
[1754363738347,11.70828016,168.34,168.33,0.06]
[1754363740744,35.89799192,168.34,168.32,0.06]
[1754363740968,56.47141756,168.33,168.32,0.06]
[1754363741784,62.41212925,168.33,168.32,0.06]
[1754363741963,53.32863306,168.33,168.32,0.06]
[1754363742164,37.70863306,168.33,168.32,0.06]
[1754363742474,79.34863306,168.33,168.32,0.06]
[1754363749664,84.43655443,168.33,168.32,0.06]
[1754363749865,86.81686943,168.33,168.32,0.06]
[1754363750979,60.81686943,168.33,168.32,0.06]
[1754363752757,41.64,168.33,168.32,0.06]
[1754363753193,41.64,168.33,168.32,0.68]
[1754363753573,46.72792137,168.33,168.32,0.06]
[1754363754389,47.40792137,168.33,168.32,0.06]
[1754363754693,46.72792137,168.33,168.32,0.06]
[1754363757376,41.64,168.33,168.32,0.68]
[1754363757568,0.03,168.35,168.32,5.76792137]
[1754363757777,41.62,168.34,168.33,5.94071169]
[1754363757982,41.62,168.34,168.33,6.56071169]
[1754363758375,46.70792137,168.34,168.32,6.00095088]
[1754363758903,0.03,168.33,168.32,0.06]
[1754363759070,5.11792137,168.33,168.32,0.06]
[1754363761867,0.03,168.33,168.32,0.06]
[1754363762075,0.03,168.33,168.32,0.68]
[1754363762411,0.03,168.33,168.32,5.76792137]
[1754363763278,0.03,168.33,168.32,11.708986]
[1754363763484,0.03,168.33,168.32,6.62106463]
[1754363764093,0.03,168.33,168.32,6.00106463]
[1754363766278,0.03,168.33,168.32,0.06]
[1754363771083,0.73,168.33,168.32,0.06]
[1754363772021,5.81792137,168.33,168.32,0.06]
[1754363775089,8.19781137,168.33,168.32,0.06]